[Event "1st Sivas Buruciye Open 2019"]
[Site "Sivas"]
[Date "2019.08.24"]
[Round "9"]
[White "Bogaakca, Mehmet"]
[Black "Sabahi, Ali Can"]
[Result "0-1"]
[ECO "A46"]
[WhiteElo "1665"]
[BlackElo "1825"]
[Annotator "NA"]
[PlyCount "62"]
[EventDate "2019.08.19"]
[EventType "swiss"]
[EventCountry "TUR"]
[SourceTitle "playchess.com"]
[Source "ChessBase"]
[SourceQuality "1"]
[TimeControl "5400+30"]

1. Nf3 {[%emt 0:02:30]} e6 {[%emt 0:00:30]} 2. d4 {[%emt 0:00:30]} Nf6 {[%emt 0:00:30]} 3. Bg5 {[%emt 0:00:00]} c5 {[%emt 0:00:30]} 4. c3 {[%emt 0:00:00]} cxd4 {[%emt 0:00:30]} 5. cxd4 {[%emt 0:00:00]} Qb6 {[%emt 0:00:30]} 6. Qc2 {[%emt 0:03:00]} Nc6 {[%emt 0:02:30]} 7. Bxf6 {[%emt 0:00:30]} gxf6 {[%emt 0:00:00]} 8. e3 {[%emt 0:00:30]} d5 {[%emt 0:01:00]} 9. Nbd2 {[%emt 0:00:30]} Bd7 {[%emt 0:01:30]} 10. Rc1 {[%emt 0:00:30]} Bd6 {[%emt 0:07:30]} 11. Qb3 {[%emt 0:01:30]} Qxb3 {[%emt 0:03:30]} 12. Nxb3 {[%emt 0:00:30]} b6 {[%emt 0:00:00]} 13. Bb5 {[%emt 0:01:30]} Nb4 {[%emt 0:00:00]} 14. Bxd7+ {[%emt 0:02:30]} Kxd7 {[%emt 0:00:30]} 15. Kd2 {[%emt 0:01:30]} Nxa2 {[%emt 0:00:30]} 16. Ra1 {[%emt 0:00:00]} Nb4 {[%emt 0:00:00]} 17. Rhc1 {[%emt 0:00:00]} a5 {[%emt 0:01:00]} 18. Ke2 {[%emt 0:04:30]} a4 {[%emt 0:06:30]} 19. Nbd2 {[%emt 0:00:30]} b5 {[%emt 0:00:00]} 20. Ne1 {[%emt 0:00:30]} Rhc8 {[%emt 0:01:00]} 21. Nd3 {[%emt 0:00:30]} Nc2 {[%emt 0:01:30]} 22. Ra2 {[%emt 0:22:30]} Nb4 {[%emt 0:19:30]} 23. Raa1 {[%emt 0:05:30]} Nxd3 {[%emt 0:01:30]} 24. Rxc8 {[%emt 0:01:30]} Nf4+ {[%emt 0:03:30]} 25. exf4 {[%emt 0:04:30]} Rxc8 {[%emt 0:01:30]} 26. b3 {[%emt 0:03:30]} Bxf4 {[%emt 0:08:30]} 27. Nf3 {[%emt 0:03:30]} Rc2+ {[%emt 0:02:30]} 28. Kd3 {[%emt 0:00:30]} axb3 {[%emt 0:00:30]} 29. g3 {[%emt 0:01:30]} Bh6 {[%emt 0:03:30]} 30. Rf1 {[%emt 0:04:30]} b4 {[%emt 0:02:30]} 31. g4 {[%emt 0:00:30]} Bc1 {[%emt 0:01:30]} 0-1

[Event "1st Sivas Buruciye Open 2019"]
[Site "Sivas"]
[Date "2019.08.24"]
[Round "9"]
[White "Altundal, Arda"]
[Black "Genc, Ugur Can"]
[Result "1-0"]
[ECO "B40"]
[WhiteElo "1659"]
[BlackElo "1661"]
[Annotator "NA"]
[PlyCount "61"]
[EventDate "2019.08.19"]
[EventType "swiss"]
[EventCountry "TUR"]
[SourceTitle "playchess.com"]
[Source "ChessBase"]
[SourceQuality "1"]
[TimeControl "5400+30"]

1. e4 c5 2. Nf3 e6 {[%emt 0:00:00]} 3. d4 {[%emt 0:07:30]} cxd4 {[%emt 0:00:30]} 4. Nxd4 {[%emt 0:00:30]} Nf6 {[%emt 0:00:00]} 5. Bd3 {[%emt 0:04:30]} Nc6 {[%emt 0:06:00]} 6. Nb3 {[%emt 0:06:30]} a5 {[%emt 0:01:30]} 7. a4 {[%emt 0:02:30]} d5 {[%emt 0:06:30]} 8. Qe2 {[%emt 0:04:30]} Bd6 {[%emt 0:06:30]} 9. O-O {[%emt 0:04:30]} O-O {[%emt 0:00:30]} 10. f4 {[%emt 0:01:30]} dxe4 {[%emt 0:04:30]} 11. Bxe4 {[%emt 0:03:30]} Nxe4 {[%emt 0:00:30]} 12. Qxe4 {[%emt 0:00:00]} Ne7 {[%emt 0:09:30]} 13. Nc3 {[%emt 0:03:00]} Bd7 {[%emt 0:02:30]} 14. Nd4 {[%emt 0:03:30]} Bc5 {[%emt 0:05:30]} 15. Kh1 {[%emt 0:01:30]} Qb6 {[%emt 0:01:30]} 16. Rd1 {[%emt 0:07:30]} Rfd8 {[%emt 0:02:30]} 17. b3 {[%emt 0:07:30]} Rac8 {[%emt 0:13:30]} 18. Bb2 {[%emt 0:03:30]} Nc6 {[%emt 0:13:30]} 19. Nf3 {[%emt 0:15:30]} h6 {[%emt 0:02:30]} 20. h3 {[%emt 0:13:46]} Qb4 {[%emt 0:09:45]} 21. Kh2 {[%emt 0:05:37]} f5 {[%emt 0:02:53]} 22. Qxb4 {[%emt 0:01:30]} Nxb4 {[%emt 0:01:22]} 23. Ne5 {[%emt 0:01:28]} Be8 {[%emt 0:02:19]} 24. Nc4 {[%emt 0:00:33]} b6 {[%emt 0:04:11]} 25. Rxd8 {[%emt 0:00:54]} Rxd8 {[%emt 0:00:02]} 26. Rc1 {[%emt 0:00:10]} Bc6 {[%emt 0:02:26]} 27. Nb1 {[%emt 0:01:22]} Bd5 {[%emt 0:01:20]} 28. Nba3 {[%emt 0:00:20]} Kf8 {[%emt 0:01:19]} 29. Rd1 {[%emt 0:00:10]} g6 {[%emt 0:00:19]} 30. Ne5 {[%emt 0:00:27]} Nc6 {[%emt 0:01:20]} 31. Nxc6 {[%emt 0:00:10]} 1-0

[Event "1st Sivas Buruciye Open 2019"]
[Site "Sivas"]
[Date "2019.08.24"]
[Round "9"]
[White "Ismayilov, Arturan"]
[Black "Sibli, Murat Yigit"]
[Result "0-1"]
[ECO "B90"]
[WhiteElo "1561"]
[BlackElo "1583"]
[Annotator "NA"]
[PlyCount "106"]
[EventDate "2019.08.19"]
[EventType "swiss"]
[EventCountry "TUR"]
[SourceTitle "playchess.com"]
[Source "ChessBase"]
[SourceQuality "1"]
[TimeControl "5400+30"]

1. e4 {[%emt 0:00:30]} c5 {[%emt 0:01:30]} 2. Nf3 {[%emt 0:00:30]} d6 {[%emt 0:00:30]} 3. d4 {[%emt 0:00:30]} cxd4 {[%emt 0:00:30]} 4. Nxd4 {[%emt 0:00:00]} Nf6 {[%emt 0:00:30]} 5. Nc3 {[%emt 0:00:00]} a6 {[%emt 0:00:00]} 6. h3 {[%emt 0:00:30]} e5 {[%emt 0:02:00]} 7. Nde2 {[%emt 0:00:00]} Nbd7 {[%emt 0:02:30]} 8. g4 {[%emt 0:03:00]} h6 {[%emt 0:04:30]} 9. Bg2 {[%emt 0:00:30]} b5 {[%emt 0:02:30]} 10. O-O {[%emt 0:03:30]} Bb7 {[%emt 0:02:30]} 11. Ng3 {[%emt 0:01:30]} Rc8 {[%emt 0:04:30]} 12. Be3 {[%emt 0:03:30]} Nb6 {[%emt 0:03:30]} 13. Nd5 {[%emt 0:08:30]} Bxd5 {[%emt 0:03:30]} 14. exd5 {[%emt 0:00:30]} Nc4 {[%emt 0:03:30]} 15. b3 {[%emt 0:01:30]} Nxe3 {[%emt 0:01:30]} 16. fxe3 {[%emt 0:00:30]} Qb6 {[%emt 0:10:30]} 17. Qd3 {[%emt 0:02:30]} Qc5 {[%emt 0:05:30]} 18. Rac1 {[%emt 0:14:30]} Qc3 {[%emt 0:03:30]} 19. Qe2 {[%emt 0:02:30]} Be7 {[%emt 0:12:30]} 20. Nf5 {[%emt 0:00:00]} g6 {[%emt 0:03:30]} 21. Nxd6+ {[%emt 0:09:00]} Bxd6 {[%emt 0:00:30]} 22. Rxf6 {[%emt 0:00:00]} Bc5 {[%emt 0:05:30]} 23. Re1 {[%emt 0:02:00]} O-O {[%emt 0:04:30]} 24. d6 {[%emt 0:00:30]} e4 {[%emt 0:03:47]} 25. Qf2 {[%emt 0:07:30]} Kg7 {[%emt 0:02:53]} 26. Rf4 {[%emt 0:04:30]} Bxd6 {[%emt 0:00:54]} 27. Rxe4 {[%emt 0:00:30]} Bc5 {[%emt 0:01:05]} 28. Kh1 {[%emt 0:01:30]} Rcd8 {[%emt 0:03:28]} 29. Rf1 {[%emt 0:05:30]} Rd2 {[%emt 0:05:07]} 30. Qf3 {[%emt 0:02:30]} Rd7 {[%emt 0:05:40]} 31. Rf2 {[%emt 0:02:30]} f5 {[%emt 0:01:43]} 32. gxf5 {[%emt 0:01:30]} Rxf5 {[%emt 0:00:19]} 33. Qe2 {[%emt 0:00:30]} Rxf2 {[%emt 0:01:30]} 34. Qxf2 {[%emt 0:00:30]} Rf7 {[%emt 0:00:00]} 35. Qg3 {[%emt 0:02:30]} Qa1+ {[%emt 0:00:26]} 36. Kh2 {[%emt 0:00:30]} Qf6 {[%emt 0:00:06]} 37. Qe1 {[%emt 0:00:30]} Bd6+ {[%emt 0:01:17]} 38. Kh1 {[%emt 0:00:30]} Bc7 {[%emt 0:00:09]} 39. Qd1 {[%emt 0:01:30]} Kh7 {[%emt 0:00:36]} 40. Rg4 {[%emt 0:02:19]} h5 {[%emt 0:00:36]} 41. Rd4 {[%emt 0:00:23]} Qe5 {[%emt 0:00:40]} 42. Qg1 {[%emt 0:00:31]} Qg3 {[%emt 0:00:17]} 43. Rd1 {[%emt 0:01:13]} Kh6 {[%emt 0:00:30]} 44. a3 {[%emt 0:03:55]} Re7 {[%emt 0:00:34]} 45. Rd3 {[%emt 0:00:06]} Rf7 {[%emt 0:00:38]} 46. e4 {[%emt 0:00:14]} Qe5 {[%emt 0:00:20]} 47. Bf3 {[%emt 0:00:36]} Kh7 {[%emt 0:00:25]} 48. Rd5 {[%emt 0:00:35]} Qf4 {[%emt 0:00:22]} 49. Bg2 {[%emt 0:00:14]} Re7 {[%emt 0:00:46]} 50. a4 {[%emt 0:00:41]} bxa4 {[%emt 0:01:02]} 51. bxa4 {[%emt 0:00:00]} Be5 {[%emt 0:00:00]} 52. c4 {[%emt 0:00:17]} Rb7 {[%emt 0:00:34]} 53. c5 {[%emt 0:00:13]} Rb1 {[%emt 0:00:30]} 0-1

[Event "1st Sivas Buruciye Open 2019"]
[Site "Sivas"]
[Date "2019.08.24"]
[Round "9"]
[White "Akbayir, Eymen"]
[Black "Unal, Burak Kayra"]
[Result "1/2-1/2"]
[ECO "B48"]
[WhiteElo "1108"]
[BlackElo "1379"]
[Annotator "NA"]
[PlyCount "104"]
[EventDate "2019.08.19"]
[EventType "swiss"]
[EventCountry "TUR"]
[SourceTitle "playchess.com"]
[Source "ChessBase"]
[SourceQuality "1"]
[TimeControl "5400+30"]

1. e4 {[%emt 0:01:30]} c5 {[%emt 0:00:30]} 2. Nf3 {[%emt 0:00:30]} e6 {[%emt 0:02:30]} 3. d4 {[%emt 0:00:30]} cxd4 {[%emt 0:02:30]} 4. Nxd4 {[%emt 0:01:30]} a6 {[%emt 0:03:30]} 5. Nc3 {[%emt 0:01:30]} Nc6 {[%emt 0:01:30]} 6. Be3 {[%emt 0:01:30]} Qc7 {[%emt 0:01:30]} 7. Qd2 {[%emt 0:05:30]} b5 {[%emt 0:03:30]} 8. a3 {[%emt 0:02:30]} Nf6 {[%emt 0:03:30]} 9. Nf3 {[%emt 0:02:30]} Bb7 {[%emt 0:11:30]} 10. Bd3 {[%emt 0:02:30]} Be7 {[%emt 0:06:30]} 11. Rd1 {[%emt 0:00:30]} Rd8 {[%emt 0:00:30]} 12. Bf4 {[%emt 0:00:30]} d6 {[%emt 0:03:30]} 13. Qe2 {[%emt 0:09:30]} Nd7 {[%emt 0:05:30]} 14. b4 {[%emt 0:03:30]} Nce5 {[%emt 0:02:30]} 15. Bxe5 {[%emt 0:06:30]} Nxe5 {[%emt 0:00:30]} 16. Nb1 {[%emt 0:02:30]} O-O {[%emt 0:05:30]} 17. O-O {[%emt 0:03:30]} Nxf3+ {[%emt 0:02:30]} 18. Qxf3 {[%emt 0:02:30]} g6 {[%emt 0:01:30]} 19. Rfe1 {[%emt 0:02:30]} d5 {[%emt 0:04:30]} 20. exd5 {[%emt 0:07:30]} Bxd5 {[%emt 0:00:30]} 21. Be4 {[%emt 0:03:30]} Bxe4 {[%emt 0:02:30]} 22. Qxe4 {[%emt 0:00:30]} Rc8 {[%emt 0:01:30]} 23. Rd2 {[%emt 0:05:30]} Bg5 {[%emt 0:03:30]} 24. Rde2 {[%emt 0:01:30]} Rfd8 {[%emt 0:01:30]} 25. Qg4 {[%emt 0:05:30]} Bf6 {[%emt 0:01:30]} 26. Qg3 {[%emt 0:02:30]} Rd7 {[%emt 0:02:30]} 27. Qb3 {[%emt 0:02:30]} Qc4 {[%emt 0:01:30]} 28. Qf3 {[%emt 0:02:30]} Kg7 {[%emt 0:02:30]} 29. g3 {[%emt 0:04:47]} Bc3 {[%emt 0:01:30]} 30. Rc1 {[%emt 0:01:54]} Qc6 {[%emt 0:04:37]} 31. Qxc6 {[%emt 0:03:38]} Rxc6 {[%emt 0:00:05]} 32. Nxc3 {[%emt 0:00:00]} Rxc3 {[%emt 0:00:36]} 33. Ra1 {[%emt 0:00:00]} Rd4 {[%emt 0:00:45]} 34. Kf1 {[%emt 0:00:37]} Kf6 {[%emt 0:00:44]} 35. Ke1 {[%emt 0:00:45]} e5 {[%emt 0:00:58]} 36. Ra2 {[%emt 0:00:46]} e4 {[%emt 0:00:52]} 37. Rd2 {[%emt 0:00:40]} Ke5 {[%emt 0:00:36]} 38. Rxd4 {[%emt 0:00:47]} Kxd4 {[%emt 0:00:28]} 39. Kd2 {[%emt 0:00:36]} Rf3 {[%emt 0:00:43]} 40. Ke2 {[%emt 0:00:39]} f5 {[%emt 0:00:35]} 41. a4 {[%emt 0:01:16]} Kc4 {[%emt 0:00:44]} 42. axb5 {[%emt 0:00:44]} axb5 {[%emt 0:03:59]} 43. Ra7 {[%emt 0:00:50]} Rc3 {[%emt 0:00:59]} 44. Kd2 {[%emt 0:00:39]} Rf3 {[%emt 0:01:34]} 45. Ke2 {[%emt 0:00:09]} Rc3 {[%emt 0:00:13]} 46. Kd2 {[%emt 0:00:10]} Rf3 {[%emt 0:00:12]} 47. Ke1 {[%emt 0:00:31]} Rc3 {[%emt 0:01:05]} 48. Kd2 {[%emt 0:00:05]} Rf3 {[%emt 0:00:00]} 49. Ke2 {[%emt 0:00:44]} Rc3 {[%emt 0:00:00]} 50. Kd2 {[%emt 0:00:07]} Rf3 {[%emt 0:00:00]} 51. Ke2 {[%emt 0:00:00]} Rc3 {[%emt 0:00:39]} 52. Kd2 {[%emt 0:00:00]} Rf3 {[%emt 0:00:00]} 1/2-1/2